fUSD/lending_fUSD_20260628
["ID","MTS","AMOUNT","RATE_DAILY","PERIOD"]
[426580436,1782628238000,-56.56508616,0.00028673,30]
[426580458,1782628238000,-6676.8170041,0.000299,2]
[426580432,1782628238000,-153.0,0.00028668,30]
[426580460,1782628238000,-2196.87261684,0.000299,2]
[426580461,1782628238000,-267.05241939,0.000299,2]
[426580459,1782628238000,-1972.90924529,0.000299,2]
[426580456,1782628238000,-6258.53720702,0.000299,2]
[426580457,1782628238000,-10846.59886623,0.000299,2]
[426580455,1782628238000,-2142.31612176,0.000299,2]
[426580453,1782628238000,-6190.98559512,0.000299,2]
[426580450,1782628238000,-197.18852701,0.000298,2]
[426580439,1782628238000,-4423.67285819,0.00028979,2]
[426580452,1782628238000,-4655.61327115,0.000299,2]
[426580448,1782628238000,-157.0,0.0002967,30]
[426580447,1782628238000,-159.0,0.00029668,30]
[426580446,1782628238000,-160.0,0.00029668,30]
[426580449,1782628238000,-153.0,0.00029673,30]
[426580454,1782628238000,-2445.74553745,0.000299,2]
[426580445,1782628238000,-153.0,0.00029668,30]
[426580443,1782628238000,-228.0,0.00029668,30]
[426580444,1782628238000,-151.0,0.00029668,30]
[426580437,1782628238000,-96.43491384,0.00028673,30]
[426580438,1782628238000,-3583.9003057,0.000289,2]
[426580434,1782628238000,-159.0,0.00028668,30]
[426580435,1782628238000,-157.0,0.0002867,30]
[426580451,1782628238000,-500.0,0.00029899,2]
[426580480,1782628239000,-151.0,0.00018,2]
[426580481,1782628239000,-1047.26,0.000299,2]
[426580484,1782628240000,-10846.59886623,0.000299,2]
[426580482,1782628240000,-9532.28644684,0.000299,2]
[426580483,1782628240000,-10846.59886623,0.000299,2]
[426580489,1782628240000,-6501.71431494,0.000299,2]
[426580486,1782628240000,-7448.15132394,0.000299,2]
[426580488,1782628240000,-3085.18551449,0.000299,2]
[426580485,1782628240000,-10846.59886623,0.000299,2]
[426580487,1782628240000,-313.2620278,0.000299,2]
[426580565,1782628242000,-306.15412685,0.000299,2]
[426580576,1782628244000,-2490.73520901,0.000299,2]
[426580575,1782628244000,-623.73416426,0.000299,2]
[426580574,1782628244000,-924.26105117,0.000299,2]
[426580577,1782628244000,-7228.28820715,0.000299,2]
[426580579,1782628246000,-500.0,0.00026381,2]
[426580581,1782628246000,-3204.03685812,0.000299,2]
[426580580,1782628246000,-3618.31065908,0.000299,2]
[426580585,1782628246000,-1500.22159923,0.000299,2]
[426580586,1782628246000,-3518.50775848,0.000299,2]
[426580584,1782628246000,-451.0,0.000299,2]
[426580583,1782628246000,-535.0,0.000299,2]
[426580582,1782628246000,-5156.34040888,0.000299,2]
[426580590,1782628247000,-599.4215666,0.000299,2]
[426580589,1782628247000,-135.36168894,0.000299,2]
[426580588,1782628247000,-2344.27515795,0.000299,2]
[426580587,1782628247000,-158.27034205,0.00025754,2]
[426580596,1782628267000,-217.98001832,0.00020293,3]
[426580597,1782628268000,383.060665,0.00022322,30]
[426580598,1782628277000,300.0,0.000291,120]
[426580599,1782628321000,-1076.42,0.00023152,7]
[426580600,1782628374000,-267.05241939,0.000171,2]
[426580601,1782628386000,-201.27859997,0.00016667,2]
[426580607,1782628519000,95.01581691,0.00011991,2]
[426580606,1782628519000,381.29418309,0.00011991,2]
[426580605,1782628519000,476.31,0.00011962,2]
[426580604,1782628519000,476.31,0.00011934,2]
[426580603,1782628519000,476.31,0.00011905,2]
[426580611,1782628520000,476.31,0.00012076,2]
[426580610,1782628520000,476.31,0.00012048,2]
[426580608,1782628520000,87.49469931,0.00012019,2]
[426580609,1782628520000,388.81530069,0.00012019,2]
[426580612,1782628521000,476.31,0.00012104,2]
[426580613,1782628522000,476.31,0.00012133,2]
[426580615,1782628569000,160.13662498,0.000121,2]
[426580616,1782628569000,1964.54440402,0.000121,2]
[426580620,1782628585000,1190.04,0.00037336,120]
[426580619,1782628585000,1190.04,0.00037336,120]
[426580618,1782628585000,1190.04,0.00037336,120]
[426580617,1782628585000,1190.04,0.00037336,120]
[426580623,1782628586000,1190.04,0.00037336,120]
[426580622,1782628586000,1190.04,0.00037336,120]
[426580621,1782628586000,1190.04,0.00037336,120]
[426580624,1782628587000,1190.04,0.00037336,120]
[426580625,1782628587000,1190.04,0.00037336,120]
[426580626,1782628587000,1190.04,0.00037336,120]
[426580627,1782628588000,1190.04,0.00037336,120]
[426580630,1782628588000,1190.04,0.00037336,120]
[426580629,1782628588000,1190.04,0.00037336,120]
[426580628,1782628588000,1190.04,0.00037336,120]
[426580632,1782628589000,1190.04,0.00037336,120]
[426580631,1782628589000,1190.04,0.00037336,120]
[426580636,1782628590000,1190.04,0.00037336,120]
[426580635,1782628590000,1190.04,0.00037336,120]
[426580634,1782628590000,1190.04,0.00037336,120]
[426580633,1782628590000,1190.04,0.00037336,120]
[426580637,1782628591000,1190.04,0.00037336,120]
[426580638,1782628591000,1190.04,0.00037336,120]
[426580640,1782628592000,1190.22377711,0.00037336,120]
[426580639,1782628592000,1190.04,0.00037336,120]
[426580641,1782628678000,87.62869491,0.00012068,2]
[426580642,1782628678000,528.12348684,0.00012068,2]
[426580643,1782628679000,238.34191998,0.00011856,2]
[426580644,1782628680000,206.05858114,0.00011589,2]
[426580645,1782628743000,-476.31,0.00012161,2]
[426580649,1782628797000,-500.0,0.00012168,2]
[426580651,1782628850000,-250.0,0.00012172,2]
[426580652,1782628903000,-150.0,0.00012173,2]
[426580653,1782628957000,-250.0,0.00012185,2]
[426580654,1782629010000,-245.9758432,0.00012175,2]
[426580655,1782629012000,500.0,0.00037355,120]
[426580656,1782629063000,-476.31,0.0001219,2]
[426580658,1782629067000,587.15720742,0.00011646,2]
[426580657,1782629067000,339.65042,0.00012128,2]
[426580659,1782629068000,512.58738309,0.00011646,2]
[426580660,1782629117000,-160.0,0.00012218,2]
[426580661,1782629123000,269.77,0.00011327,2]
[426580677,1782629150000,-150.0,0.00012565,2]
[426580674,1782629150000,-476.31,0.00012502,2]
[426580673,1782629150000,-476.31,0.00012474,2]
[426580672,1782629150000,-476.31,0.00012446,2]
[426580675,1782629150000,-476.31,0.00012531,2]
[426580671,1782629150000,-150.0,0.00012443,2]
[426580665,1782629150000,-476.31,0.00012303,2]
[426580669,1782629150000,-476.31,0.00012389,2]
[426580667,1782629150000,-476.31,0.00012332,2]
[426580664,1782629150000,-476.31,0.00012275,2]
[426580666,1782629150000,-150.0,0.00012321,2]
[426580663,1782629150000,-476.31,0.00012247,2]
[426580662,1782629150000,-476.31,0.00012218,2]
[426580670,1782629150000,-476.31,0.00012417,2]
[426580676,1782629150000,-476.31,0.00012559,2]
[426580668,1782629150000,-476.31,0.0001236,2]
[426580680,1782629150000,-476.31,0.00012645,2]
[426580678,1782629150000,-476.31,0.00012588,2]
[426580692,1782629150000,-476.31,0.00012844,2]
[426580693,1782629150000,-62.58152516,0.00012872,2]
[426580691,1782629150000,-476.31,0.00012815,2]
[426580689,1782629150000,-476.31,0.00012787,2]
[426580688,1782629150000,-476.31,0.00012758,2]
[426580690,1782629150000,-150.0,0.00012809,2]
[426580681,1782629150000,-150.59629794,0.00012665,2]
[426580685,1782629150000,-476.31,0.0001273,2]
[426580684,1782629150000,-476.31,0.00012702,2]
[426580686,1782629150000,-300.0,0.0001273,2]
[426580683,1782629150000,-150.0,0.00012687,2]
[426580682,1782629150000,-476.31,0.00012673,2]
[426580687,1782629150000,-150.0,0.0001273,2]
[426580679,1782629150000,-476.31,0.00012616,2]
[426580694,1782629170000,-413.72847484,0.00012872,2]
[426580695,1782629223000,-250.0,0.00012879,2]
[426580696,1782629293000,302.59,0.00012113,2]
[426580714,1782629345000,-476.31,0.00013071,2]
[426580712,1782629345000,-258.17,0.00013046,2]
[426580711,1782629345000,-476.31,0.00013043,2]
[426580708,1782629345000,-1021.38,0.00012994,2]
[426580709,1782629345000,-166.66,0.00013006,2]
[426580710,1782629345000,-476.31,0.00013014,2]
[426580707,1782629345000,-476.31,0.00012986,2]
[426580699,1782629345000,-302.59,0.00012586,2]
[426580703,1782629345000,-476.31,0.00012901,2]
[426580705,1782629345000,-160.0,0.00012938,2]
[426580702,1782629345000,-150.0,0.00012886,2]
[426580715,1782629345000,-476.31,0.000131,2]
[426580700,1782629345000,-302.59,0.00012822,2]
[426580701,1782629345000,-237.00175536,0.00012838,2]
[426580698,1782629345000,-302.59,0.00012349,2]
[426580706,1782629345000,-476.31,0.00012957,2]
[426580713,1782629345000,-302.59,0.00013058,2]
[426580704,1782629345000,-476.31,0.00012929,2]
[426580719,1782629345000,-209.16,0.00013164,2]
[426580716,1782629345000,-476.31,0.00013128,2]
[426580733,1782629345000,-200.0,0.00013839,2]
[426580732,1782629345000,-166.66,0.00013827,2]
[426580731,1782629345000,-500.0,0.00013584,2]
[426580730,1782629345000,-166.66,0.00013553,2]
[426580728,1782629345000,-302.59,0.00013531,2]
[426580729,1782629345000,-158.21987522,0.00013542,2]
[426580727,1782629345000,-2652.4,0.0001348,2]
[426580726,1782629345000,-476.31,0.00013299,2]
[426580725,1782629345000,-302.59,0.00013294,2]
[426580721,1782629345000,-476.31,0.00013213,2]
[426580722,1782629345000,-476.31,0.00013242,2]
[426580724,1782629345000,-166.66,0.0001328,2]
[426580723,1782629345000,-476.31,0.0001327,2]
[426580720,1782629345000,-476.31,0.00013185,2]
[426580717,1782629345000,-242.83,0.00013151,2]
[426580734,1782629345000,-250.0,0.00014,2]
[426580718,1782629345000,-476.31,0.00013156,2]
[426580739,1782629346000,-250.0,0.00014175,2]
[426580740,1782629346000,-250.0,0.00014175,2]
[426580738,1782629346000,-300.0,0.00014175,2]
[426580736,1782629346000,-300.0,0.00014159,2]
[426580735,1782629346000,-166.66,0.00014101,2]
[426580737,1782629346000,-250.0,0.00014159,2]
[426580742,1782629346000,-166.66,0.00014375,2]
[426580741,1782629346000,-3191.39,0.00014231,2]
[426580746,1782629346000,-1290.09,0.00014523,2]
[426580751,1782629346000,-150.0,0.00014908,2]
[426580745,1782629346000,-279.96,0.00014488,2]
[426580743,1782629346000,-1895.61,0.00014382,2]
[426580752,1782629346000,-159.17293444,0.0001495,2]
[426580754,1782629346000,-848.53260612,0.00015006,2]
[426580750,1782629346000,-279.96,0.0001485,2]
[426580753,1782629346000,-237.00175535,0.00014985,2]
[426580749,1782629346000,-150.0,0.00014777,2]
[426580747,1782629346000,-342.71,0.00014571,2]
[426580744,1782629346000,-3206.4,0.00014456,2]
[426580748,1782629346000,-200.0,0.00014602,2]
[426580759,1782629359000,-4613.35,0.00015645,2]
[426580757,1782629359000,-243.05,0.00015306,3]
[426580756,1782629359000,-279.96,0.00015213,2]
[426580760,1782629359000,-279.96,0.00015937,2]
[426580758,1782629359000,-279.96,0.00015575,2]
[426580762,1782629359000,-250.46,0.0001622,2]
[426580761,1782629359000,-300.0,0.00016,2]
[426580763,1782629359000,-1431.72538811,0.00017,2]
[426580755,1782629359000,-2388.50739388,0.00015006,2]
[426580764,1782629359000,-218.75814337,0.00017,2]
[426580767,1782629359000,-500.0,0.0001723,2]
[426580766,1782629359000,-500.0,0.0001723,2]
[426580768,1782629359000,-500.0,0.0001723,2]
[426580770,1782629359000,-500.0,0.0001723,2]
[426580769,1782629359000,-500.0,0.0001723,2]
[426580772,1782629359000,-251.56831839,0.0001723,2]
[426580765,1782629359000,-237.00175535,0.00017131,2]
[426580771,1782629359000,-500.0,0.0001723,2]
[426580782,1782629372000,-500.0,0.0001723,2]
[426580783,1782629372000,-463.45453367,0.0001723,2]
[426580780,1782629372000,-429.53870763,0.0001723,2]
[426580781,1782629372000,-500.0,0.0001723,2]
[426580779,1782629372000,-70.46129237,0.0001723,2]
[426580774,1782629372000,-500.0,0.0001723,2]
[426580777,1782629372000,-500.0,0.0001723,2]
[426580775,1782629372000,-500.0,0.0001723,2]
[426580785,1782629372000,-349.76961872,0.0001723,2]
[426580773,1782629372000,-248.43168161,0.0001723,2]
[426580778,1782629372000,-255.66687412,0.0001723,2]
[426580784,1782629372000,-500.0,0.0001723,2]
[426580776,1782629372000,-500.0,0.0001723,2]
[426580788,1782629372000,-500.0,0.0001723,2]
[426580786,1782629372000,-500.0,0.0001723,2]
[426580798,1782629372000,-326.23083598,0.0001723,2]
[426580795,1782629372000,-500.0,0.0001723,2]
[426580794,1782629372000,-500.0,0.0001723,2]
[426580796,1782629372000,-500.0,0.0001723,2]
[426580797,1782629372000,-500.0,0.0001723,2]
[426580792,1782629372000,-500.0,0.0001723,2]
[426580791,1782629372000,-500.0,0.0001723,2]
[426580790,1782629372000,-500.0,0.0001723,2]
[426580789,1782629372000,-500.0,0.0001723,2]
[426580787,1782629372000,-500.0,0.0001723,2]
[426580793,1782629372000,-500.0,0.0001723,2]
[426580847,1782629432000,-1249.43448772,0.0001723,2]
[426580841,1782629432000,-500.0,0.0001723,2]
[426580839,1782629432000,-500.0,0.0001723,2]
[426580843,1782629432000,-205.52995763,0.0001723,2]
[426580848,1782629432000,-500.0,0.0001723,2]
[426580842,1782629432000,-500.0,0.0001723,2]
[426580838,1782629432000,-500.0,0.0001723,2]
[426580837,1782629432000,-500.0,0.0001723,2]
[426580846,1782629432000,-1249.43448772,0.0001723,2]
[426580833,1782629432000,-500.0,0.0001723,2]
[426580840,1782629432000,-500.0,0.0001723,2]
[426580845,1782629432000,-730.50028635,0.0001723,2]
[426580852,1782629432000,-1249.43448772,0.0001723,2]
[426580861,1782629432000,-500.0,0.0001723,2]
[426580867,1782629432000,-500.0,0.0001723,2]
[426580859,1782629432000,-1249.43448772,0.0001723,2]
[426580863,1782629432000,-1249.43448772,0.0001723,2]
[426580865,1782629432000,-1249.43448772,0.0001723,2]
[426580851,1782629432000,-1249.43448772,0.0001723,2]
[426580849,1782629432000,-1249.43448772,0.0001723,2]
[426580855,1782629432000,-500.0,0.0001723,2]
[426580853,1782629432000,-500.0,0.0001723,2]
[426580854,1782629432000,-1249.43448772,0.0001723,2]
[426580850,1782629432000,-500.0,0.0001723,2]
[426580836,1782629432000,-500.0,0.0001723,2]
[426580844,1782629432000,-518.93420137,0.0001723,2]
[426580827,1782629432000,-132.53183262,0.0001723,2]
[426580820,1782629432000,-500.0,0.0001723,2]
[426580835,1782629432000,-500.0,0.0001723,2]
[426580869,1782629432000,-1249.43448772,0.0001723,2]
[426580808,1782629432000,-707.57247454,0.0001643,2]
[426580809,1782629432000,-500.0,0.0001723,2]
[426580807,1782629432000,-864.81080222,0.0001643,2]
[426580812,1782629432000,-500.0,0.0001723,2]
[426580810,1782629432000,-173.76916402,0.0001723,2]
[426580813,1782629432000,-500.0,0.0001723,2]
[426580811,1782629432000,-500.0,0.0001723,2]
[426580814,1782629432000,-500.0,0.0001723,2]
[426580819,1782629432000,-500.0,0.0001723,2]
[426580817,1782629432000,-500.0,0.0001723,2]
[426580822,1782629432000,-500.0,0.0001723,2]
[426580815,1782629432000,-500.0,0.0001723,2]
[426580821,1782629432000,-500.0,0.0001723,2]
[426580816,1782629432000,-500.0,0.0001723,2]
[426580823,1782629432000,-174.05087228,0.0001723,2]
[426580824,1782629432000,-260.03248731,0.0001723,2]
[426580818,1782629432000,-500.0,0.0001723,2]
[426580826,1782629432000,-367.46816738,0.0001723,2]
[426580829,1782629432000,-332.53183262,0.0001723,2]
[426580830,1782629432000,-500.0,0.0001723,2]
[426580825,1782629432000,-65.91664041,0.0001723,2]
[426580831,1782629432000,-500.0,0.0001723,2]
[426580832,1782629432000,-500.0,0.0001723,2]
[426580834,1782629432000,-500.0,0.0001723,2]
[426580828,1782629432000,-167.46816738,0.0001723,2]
[426580875,1782629432000,-500.0,0.0001723,2]
[426580857,1782629432000,-1249.43448772,0.0001723,2]
[426580886,1782629432000,-500.0,0.0001723,2]
[426580909,1782629432000,-500.0,0.0001723,2]
[426580910,1782629432000,-1249.43448772,0.0001723,2]
[426580911,1782629432000,-500.0,0.0001723,2]
[426580915,1782629432000,-1249.43448772,0.0001723,2]
[426580916,1782629432000,-1249.43448772,0.0001723,2]
[426580919,1782629432000,-500.0,0.0001723,2]
[426580920,1782629432000,-1249.43448772,0.0001723,2]
[426580921,1782629432000,-500.0,0.0001723,2]
[426580917,1782629432000,-500.0,0.0001723,2]
[426580918,1782629432000,-1249.43448772,0.0001723,2]
[426580922,1782629432000,-1249.43448772,0.0001723,2]
[426580923,1782629432000,-1249.43448772,0.0001723,2]
[426580908,1782629432000,-1249.43448772,0.0001723,2]
[426580925,1782629432000,-500.0,0.0001723,2]
[426580927,1782629432000,-500.0,0.0001723,2]
[426580928,1782629432000,-1249.43448772,0.0001723,2]
[426580929,1782629432000,-1249.43448772,0.0001723,2]
[426580930,1782629432000,-1249.43448772,0.0001723,2]
[426580931,1782629432000,-1249.43448772,0.0001723,2]
[426580933,1782629432000,-1207.78667146,0.0001723,2]
[426580932,1782629432000,-1249.43448772,0.0001723,2]
[426580935,1782629432000,-1207.78667146,0.0001723,2]
[426580934,1782629432000,-1207.78667146,0.0001723,2]
[426580938,1782629432000,-1207.78667146,0.0001723,2]
[426580936,1782629432000,-1207.78667146,0.0001723,2]
[426580871,1782629432000,-500.0,0.0001723,2]
[426580924,1782629432000,-1249.43448772,0.0001723,2]
[426580906,1782629432000,-1249.43448772,0.0001723,2]
[426580926,1782629432000,-1249.43448772,0.0001723,2]
[426580905,1782629432000,-500.0,0.0001723,2]
[426580885,1782629432000,-1249.43448772,0.0001723,2]
[426580907,1782629432000,-539.00600511,0.0001723,2]
[426580879,1782629432000,-500.0,0.0001723,2]
[426580877,1782629432000,-1249.43448772,0.0001723,2]
[426580881,1782629432000,-1249.43448772,0.0001723,2]
[426580873,1782629432000,-1249.43448772,0.0001723,2]
[426580883,1782629432000,-500.0,0.0001723,2]
[426580889,1782629432000,-1249.43448772,0.0001723,2]
[426580890,1782629432000,-500.0,0.0001723,2]
[426580895,1782629432000,-500.0,0.0001723,2]
[426580894,1782629432000,-1249.43448772,0.0001723,2]
[426580896,1782629432000,-1249.43448772,0.0001723,2]
[426580902,1782629432000,-500.0,0.0001723,2]
[426580891,1782629432000,-1249.43448772,0.0001723,2]
[426580893,1782629432000,-500.0,0.0001723,2]
[426580904,1782629432000,-1249.43448772,0.0001723,2]
[426580937,1782629432000,-500.0,0.0001723,2]
[426580914,1782629432000,-500.0,0.0001723,2]
[426580912,1782629432000,-1249.43448772,0.0001723,2]
[426580903,1782629432000,-1249.43448772,0.0001723,2]
[426580900,1782629432000,-500.0,0.0001723,2]
[426580913,1782629432000,-1249.43448772,0.0001723,2]
[426580901,1782629432000,-1249.43448772,0.0001723,2]
[426580899,1782629432000,-1249.43448772,0.0001723,2]
[426580898,1782629432000,-1249.43448772,0.0001723,2]
[426580892,1782629432000,-1249.43448772,0.0001723,2]
[426580897,1782629432000,-500.0,0.0001723,2]
[426580978,1782629433000,-500.0,0.000179,2]
[426580972,1782629433000,-2681.71598667,0.00017618,2]
[426580976,1782629433000,-1769.40229905,0.00017857,2]
[426580988,1782629433000,-216.48047229,0.00019771,2]
[426580987,1782629433000,-877.18932895,0.00019683,2]
[426580971,1782629433000,-182.85896331,0.00017617,2]
[426580970,1782629433000,-500.0,0.00017617,2]
[426580967,1782629433000,-582.34751083,0.00017617,2]
[426580975,1782629433000,-670.42899667,0.00017803,2]
[426580979,1782629433000,-151.0,0.00018003,2]
[426580977,1782629433000,-199.5,0.00017886,2]
[426580981,1782629433000,-151.0,0.00018047,2]
[426581001,1782629433000,-234.65510046,0.00020615,2]
[426580980,1782629433000,-152.0,0.00018012,2]
[426580982,1782629433000,-150.0,0.0001819,2]
[426580983,1782629433000,-2256.08361102,0.00018604,2]
[426580985,1782629433000,-250.0,0.00018953,2]
[426580986,1782629433000,-197.04668343,0.00019326,2]
[426580989,1782629433000,-275.0,0.0002,2]
[426580992,1782629433000,-165.0,0.0002,2]
[426580999,1782629433000,-150.0,0.0002058,2]
[426580990,1782629433000,-191.0,0.0002,2]
[426581000,1782629433000,-150.0,0.0002058,2]
[426580991,1782629433000,-158.0,0.0002,2]
[426580995,1782629433000,-3035.77,0.0002,2]
[426580969,1782629433000,-500.0,0.00017617,2]
[426580984,1782629433000,-151.0,0.0001876,2]
[426580973,1782629433000,-2011.28699,0.00017731,2]
[426580940,1782629433000,-500.0,0.0001723,2]
[426580968,1782629433000,-500.0,0.00017617,2]
[426580939,1782629433000,-1207.78667146,0.0001723,2]
[426580996,1782629433000,-184.49,0.00020057,2]
[426580949,1782629433000,-1207.78667146,0.0001723,2]
[426580946,1782629433000,-1207.78667146,0.0001723,2]
[426580941,1782629433000,-1207.78667146,0.0001723,2]
[426580950,1782629433000,-1207.78667146,0.0001723,2]
[426580944,1782629433000,-350.0,0.0001723,2]
[426580945,1782629433000,-1207.78667146,0.0001723,2]
[426580943,1782629433000,-1207.78667146,0.0001723,2]
[426580947,1782629433000,-1207.78667146,0.0001723,2]
[426580948,1782629433000,-1207.78667146,0.0001723,2]
[426580942,1782629433000,-1207.78667146,0.0001723,2]
[426580951,1782629433000,-500.0,0.0001723,2]
[426580974,1782629433000,-220.0,0.0001775,2]
[426580952,1782629433000,-500.0,0.0001723,2]
[426580963,1782629433000,-301.87493634,0.00017617,2]
[426580953,1782629433000,-207.78667143,0.0001723,2]
[426580954,1782629433000,-250.0,0.00017232,2]
[426580955,1782629433000,-13134.04317662,0.00017234,2]
[426580956,1782629433000,-250.0,0.0001739,2]
[426580957,1782629433000,-150.0,0.00017405,2]
[426580960,1782629433000,-151.18,0.00017593,2]
[426580958,1782629433000,-151.0,0.00017522,2]
[426580959,1782629433000,-150.0,0.00017577,2]
[426580961,1782629433000,-383.69123068,0.00017617,2]
[426580965,1782629433000,-500.0,0.00017617,2]
[426580966,1782629433000,-500.0,0.00017617,2]
[426580964,1782629433000,-500.0,0.00017617,2]
[426580962,1782629433000,-500.0,0.00017617,2]
[426580997,1782629433000,-152.07458994,0.00020249,2]
[426581016,1782629433000,-275.0,0.00022,2]
[426580994,1782629433000,-486.0,0.0002,2]
[426581032,1782629433000,-8121.63,0.00023368,2]
[426581033,1782629433000,-9999.99,0.00023368,2]
[426581034,1782629433000,-299.99,0.00023368,7]
[426581036,1782629433000,-1200.58,0.00023368,2]
[426581035,1782629433000,-4999.99,0.00023368,2]
[426580993,1782629433000,-159.0,0.0002,2]
[426581045,1782629433000,-24657.57,0.00023368,2]
[426581048,1782629433000,-160.51490471,0.00023735,2]
[426581046,1782629433000,-6756.41699573,0.00023389,2]
[426581041,1782629433000,-3981.25026966,0.00023368,2]
[426581043,1782629433000,-959.1975355,0.00023368,2]
[426581042,1782629433000,-9999.99,0.00023368,2]
[426581047,1782629433000,-335.79339265,0.00023405,2]
[426581044,1782629433000,-3012.8924645,0.00023368,2]
[426581040,1782629433000,-529.17973034,0.00023368,2]
[426581049,1782629433000,-204.60493768,0.00023735,2]
[426581051,1782629433000,-164.26557105,0.00023735,2]
[426581050,1782629433000,-188.45633464,0.00023735,2]
[426581052,1782629433000,-189.44197875,0.00023735,2]
[426581054,1782629433000,-198.91948173,0.00023735,2]
[426581053,1782629433000,-175.70874755,0.00023735,2]
[426581055,1782629433000,-163.1205316,0.00023735,2]
[426581057,1782629433000,-191.0,0.00024,2]
[426581060,1782629433000,-500.0,0.00024173,2]
[426581056,1782629433000,-275.0,0.00024,2]
[426581058,1782629433000,-159.0,0.00024,2]
[426581059,1782629433000,-486.0,0.00024,2]
[426581031,1782629433000,-2663.78,0.00023155,7]
[426581030,1782629433000,-486.0,0.00023,2]
[426581039,1782629433000,-1495.03,0.00023368,2]
[426581037,1782629433000,-150.99,0.00023368,2]
[426580998,1782629433000,-150.0,0.00020293,2]
[426581003,1782629433000,-195.32001221,0.00020698,3]
[426581002,1782629433000,-151.71,0.0002067,2]
[426581006,1782629433000,-167.0,0.00021,2]
[426581005,1782629433000,-191.0,0.00021,2]
[426581026,1782629433000,-249.0,0.00022886,2]
[426581008,1782629433000,-486.0,0.00021,2]
[426581011,1782629433000,-270.58378441,0.0002162,2]
[426581007,1782629433000,-159.0,0.00021,2]
[426581010,1782629433000,-2938.47,0.00021578,2]
[426581012,1782629433000,-6756.41699581,0.000219,2]
[426581009,1782629433000,-172.6600061,0.00021104,3]
[426581013,1782629433000,-5000.0,0.00021918,2]
[426581014,1782629433000,-166.0,0.00021918,2]
[426581004,1782629433000,-275.0,0.00021,2]
[426581025,1782629433000,-2020.24,0.00022466,2]
[426581015,1782629433000,-166.0,0.00021918,2]
[426581029,1782629433000,-159.0,0.00023,2]
[426581038,1782629433000,-9999.99,0.00023368,2]
[426581027,1782629433000,-275.0,0.00023,2]
[426581020,1782629433000,-483.7226833,0.00022009,7]
[426581023,1782629433000,-500.0,0.00022274,2]
[426581028,1782629433000,-191.0,0.00023,2]
[426581022,1782629433000,-289.20816127,0.00022237,2]
[426581021,1782629433000,-1276.55181446,0.00022009,7]
[426581024,1782629433000,-1699.9,0.00022466,2]
[426581018,1782629433000,-159.0,0.00022,2]
[426581017,1782629433000,-191.0,0.00022,2]
[426581019,1782629433000,-486.0,0.00022,2]
[426581074,1782629434000,-500.0,0.00024979,2]
[426581070,1782629434000,-6756.41699573,0.00024878,2]
[426581073,1782629434000,-500.0,0.00024979,2]
[426581069,1782629434000,-441.54466709,0.00024799,2]
[426581065,1782629434000,-500.0,0.00024657,2]
[426581075,1782629434000,-512.30421207,0.00024979,2]
[426581071,1782629434000,-500.0,0.00024979,2]
[426581063,1782629434000,-11987.0,0.00024217,2]
[426581072,1782629434000,-500.0,0.00024979,2]
[426581068,1782629434000,-1399.25,0.00024733,7]
[426581067,1782629434000,-1000.0,0.00024658,2]
[426581066,1782629434000,-183.46,0.00024658,2]
[426581064,1782629434000,-2251.98871522,0.00024509,7]
[426581062,1782629434000,-360.54,0.00024174,2]